Workbook

Sheet ΔΕΔΟΜΕΝΑ ΠΡΟΒΛΗΜΑΤΟΣ - ΓΡΑΦΗΜΑ
B1: ΑΝΑΛΥΣΗ ΠΡΟΒΛΗΜΑΤΟΣ - PARETO
B2: Το γράφημα Pareto για το αθροιστικό ποσοστό του αριθμού εμφανίσεων όλων των περιοχών προβλημάτων βρίσκεται σε αυτό το κελί.
B4: ΔΕΔΟΜΕΝΑ ΠΡΟΒΛΗΜΑΤΟΣ
B6: ΠΕΡΙΟΧΗ ΠΡΟΒΛΗΜΑΤΟΣ | C6: ΕΜΦΑΝΙΣΕΙΣ | D6: ΠΟΣΟΣΤΟ ΣΥΝΟΛΟΥ | E6: ΑΘΡΟΙΣΤΙΚΟ ΠΟΣΟΣΤΟ
B7: Μετάδοση | C7: 35 | D7: =IFERROR(Δεδομένα[[#This Row],[ΕΜΦΑΝΙΣΕΙΣ]]/SUM(Δεδομένα[ΕΜΦΑΝΙΣΕΙΣ]), "") -> 23.18% | E7: =IFERROR(SUM(INDEX(Δεδομένα[ΕΜΦΑΝΙΣΕΙΣ],1):Δεδομένα[[#This Row],[ΕΜΦΑΝΙΣΕΙΣ]])/SUM(Δεδομένα[ΕΜΦΑΝΙΣΕΙΣ]), "") -> 23.18%
B8: Σύστημα καυσίμων | C8: 25 | D8: =IFERROR(Δεδομένα[[#This Row],[ΕΜΦΑΝΙΣΕΙΣ]]/SUM(Δεδομένα[ΕΜΦΑΝΙΣΕΙΣ]), "") -> 16.56% | E8: =IFERROR(SUM(INDEX(Δεδομένα[ΕΜΦΑΝΙΣΕΙΣ],1):Δεδομένα[[#This Row],[ΕΜΦΑΝΙΣΕΙΣ]])/SUM(Δεδομένα[ΕΜΦΑΝΙΣΕΙΣ]), "") -> 39.74%
B9: Διάφορα | C9: 21 | D9: =IFERROR(Δεδομένα[[#This Row],[ΕΜΦΑΝΙΣΕΙΣ]]/SUM(Δεδομένα[ΕΜΦΑΝΙΣΕΙΣ]), "") -> 13.91% | E9: =IFERROR(SUM(INDEX(Δεδομένα[ΕΜΦΑΝΙΣΕΙΣ],1):Δεδομένα[[#This Row],[ΕΜΦΑΝΙΣΕΙΣ]])/SUM(Δεδομένα[ΕΜΦΑΝΙΣΕΙΣ]), "") -> 53.64%
B10: Θορυβώδη | C10: 18 | D10: =IFERROR(Δεδομένα[[#This Row],[ΕΜΦΑΝΙΣΕΙΣ]]/SUM(Δεδομένα[ΕΜΦΑΝΙΣΕΙΣ]), "") -> 11.92% | E10: =IFERROR(SUM(INDEX(Δεδομένα[ΕΜΦΑΝΙΣΕΙΣ],1):Δεδομένα[[#This Row],[ΕΜΦΑΝΙΣΕΙΣ]])/SUM(Δεδομένα[ΕΜΦΑΝΙΣΕΙΣ]), "") -> 65.56%
B11: Στοιχεία ελέγχου οδηγού | C11: 13 | D11: =IFERROR(Δεδομένα[[#This Row],[ΕΜΦΑΝΙΣΕΙΣ]]/SUM(Δεδομένα[ΕΜΦΑΝΙΣΕΙΣ]), "") -> 8.61% | E11: =IFERROR(SUM(INDEX(Δεδομένα[ΕΜΦΑΝΙΣΕΙΣ],1):Δεδομένα[[#This Row],[ΕΜΦΑΝΙΣΕΙΣ]])/SUM(Δεδομένα[ΕΜΦΑΝΙΣΕΙΣ]), "") -> 74.17%
B12: Άλλο ηλεκτρικό | C12: 12 | D12: =IFERROR(Δεδομένα[[#This Row],[ΕΜΦΑΝΙΣΕΙΣ]]/SUM(Δεδομένα[ΕΜΦΑΝΙΣΕΙΣ]), "") -> 7.95% | E12: =IFERROR(SUM(INDEX(Δεδομένα[ΕΜΦΑΝΙΣΕΙΣ],1):Δεδομένα[[#This Row],[ΕΜΦΑΝΙΣΕΙΣ]])/SUM(Δεδομένα[ΕΜΦΑΝΙΣΕΙΣ]), "") -> 82.12%
B13: Ανάφλεξη | C13: 10 | D13: =IFERROR(Δεδομένα[[#This Row],[ΕΜΦΑΝΙΣΕΙΣ]]/SUM(Δεδομένα[ΕΜΦΑΝΙΣΕΙΣ]), "") -> 6.62% | E13: =IFERROR(SUM(INDEX(Δεδομένα[ΕΜΦΑΝΙΣΕΙΣ],1):Δεδομένα[[#This Row],[ΕΜΦΑΝΙΣΕΙΣ]])/SUM(Δεδομένα[ΕΜΦΑΝΙΣΕΙΣ]), "") -> 88.74%
B14: Σύστημα ψύξης | C14: 7 | D14: =IFERROR(Δεδομένα[[#This Row],[ΕΜΦΑΝΙΣΕΙΣ]]/SUM(Δεδομένα[ΕΜΦΑΝΙΣΕΙΣ]), "") -> 4.64% | E14: =IFERROR(SUM(INDEX(Δεδομένα[ΕΜΦΑΝΙΣΕΙΣ],1):Δεδομένα[[#This Row],[ΕΜΦΑΝΙΣΕΙΣ]])/SUM(Δεδομένα[ΕΜΦΑΝΙΣΕΙΣ]), "") -> 93.38%
B15: Πέδηση | C15: 5 | D15: =IFERROR(Δεδομένα[[#This Row],[ΕΜΦΑΝΙΣΕΙΣ]]/SUM(Δεδομένα[ΕΜΦΑΝΙΣΕΙΣ]), "") -> 3.31% | E15: =IFERROR(SUM(INDEX(Δεδομένα[ΕΜΦΑΝΙΣΕΙΣ],1):Δεδομένα[[#This Row],[ΕΜΦΑΝΙΣΕΙΣ]])/SUM(Δεδομένα[ΕΜΦΑΝΙΣΕΙΣ]), "") -> 96.69%
B16: Εκπομπές | C16: 3 | D16: =IFERROR(Δεδομένα[[#This Row],[ΕΜΦΑΝΙΣΕΙΣ]]/SUM(Δεδομένα[ΕΜΦΑΝΙΣΕΙΣ]), "") -> 1.99% | E16: =IFERROR(SUM(INDEX(Δεδομένα[ΕΜΦΑΝΙΣΕΙΣ],1):Δεδομένα[[#This Row],[ΕΜΦΑΝΙΣΕΙΣ]])/SUM(Δεδομένα[ΕΜΦΑΝΙΣΕΙΣ]), "") -> 98.68%
B17: Σύστημα διεύθυνσης | C17: 2 | D17: =IFERROR(Δεδομένα[[#This Row],[ΕΜΦΑΝΙΣΕΙΣ]]/SUM(Δεδομένα[ΕΜΦΑΝΙΣΕΙΣ]), "") -> 1.32% | E17: =IFERROR(SUM(INDEX(Δεδομένα[ΕΜΦΑΝΙΣΕΙΣ],1):Δεδομένα[[#This Row],[ΕΜΦΑΝΙΣΕΙΣ]])/SUM(Δεδομένα[ΕΜΦΑΝΙΣΕΙΣ]), "") -> 100.00%
